bitfinex/quotes_ETHUSD_20251107
["timestamp","ask_amount","ask_price","bid_price","bid_amount"]
[1762508404551,4.2915769,3298.3,3298.2,0.4854]
[1762508404736,3.0318649,3298.3,3298.2,0.4854]
[1762508405363,3.03214069,3298.0,3297.9,0.469]
[1762508405853,3.03214069,3298.0,3297.9,0.9544]
[1762508406055,3.03214069,3298.0,3297.5,0.1012]
[1762508406254,3.03250849,3297.6,3297.5,0.1012]
[1762508406453,0.4957,3298.3,3297.5,1.0556]
[1762508406690,6.77845236,3298.4,3297.7,0.4854]
[1762508406870,3.03210455,3298.1,3297.7,0.4854]
[1762508407036,6.77845236,3298.4,3297.7,0.9544]
[1762508407236,3.03204875,3298.1,3298.0,0.4854]
[1762508407437,4.29124676,3298.7,3298.0,0.4854]
[1762508407636,4.29124676,3298.7,3297.6,0.469]
[1762508407637,3.03158915,3298.6,3297.6,0.469]
[1762508407975,3.03182589,3298.4,3297.6,0.469]
[1762508408177,6.78345236,3298.9,3297.8,3.03224547]
[1762508408178,1.259712,3298.8,3297.8,3.03224547]
[1762508408346,1.259712,3298.8,3298.3,0.4854]
[1762508408675,0.005,3298.9,3298.3,0.4854]
[1762508408879,5.51874036,3298.6,3297.6,0.469]
[1762508409177,0.3061,3298.4,3297.6,0.469]
[1762508409382,3.03219153,3298.0,3297.6,0.384499]
[1762508410051,6.01444036,3298.6,3297.6,0.384499]
[1762508410378,5.51874036,3298.2,3296.9,0.1012]
[1762508410579,5.51874036,3298.2,3297.2,0.1972]
[1762508410883,3.03266225,3297.5,3297.2,0.1972]
[1762508411178,0.4957,3298.1,3297.2,0.1972]
[1762508411379,3.03214069,3298.0,3297.4,0.4854]
[1762508411570,3.03260045,3297.5,3297.4,0.4854]
[1762508411969,3.03237932,3297.8,3297.4,0.9544]
[1762508412172,5.51874036,3298.2,3297.6,0.4854]
[1762508412353,5.51874036,3298.2,3297.2,0.1972]
[1762508412354,1.259712,3298.3,3297.7,0.4854]
[1762508412550,1.755412,3298.5,3297.7,0.4854]
[1762508412750,3.03230222,3297.9,3297.7,0.4854]
[1762508412981,3.03232458,3297.8,3297.7,0.4854]
[1762508413386,3.03232458,3297.8,3297.3,0.469]
[1762508413387,3.03238611,3297.8,3297.3,0.469]
[1762508413558,1.259712,3298.2,3297.7,0.4854]
[1762508414083,3.03232458,3297.8,3297.7,0.4854]
[1762508414784,3.03261325,3297.5,3297.3,0.469]
[1762508415152,3.03254694,3297.6,3297.4,0.4568]
[1762508415390,4.29172769,3298.2,3297.4,0.4568]
[1762508415391,1.259712,3298.2,3297.4,0.4568]
[1762508415678,1.259712,3298.2,3297.5,0.4568]
[1762508415885,3.03232681,3297.8,3297.5,0.4568]
[1762508416092,3.03226702,3297.9,3297.6,0.481]
[1762508416267,3.03232458,3297.8,3297.7,0.4568]
[1762508416465,3.03241522,3297.8,3297.5,0.481]
[1762508416657,1.259712,3298.2,3297.2,0.6782]
[1762508417060,3.03248899,3297.7,3297.2,0.6782]
[1762508417261,3.03252165,3297.6,3297.2,0.1972]
[1762508417586,3.03245355,3297.7,3297.3,0.481]
[1762508417798,3.03245355,3297.7,3297.5,0.4568]
[1762508417976,1.259712,3298.2,3297.6,0.4568]
[1762508418184,3.03234592,3297.8,3297.6,0.4568]
[1762508418488,3.03225111,3297.9,3297.6,0.4568]
[1762508418692,3.03225111,3297.9,3297.7,0.4568]
[1762508418986,3.03225111,3297.9,3297.8,0.4568]
[1762508419383,3.03218487,3298.0,3297.8,0.9378]
[1762508419584,3.03218487,3298.0,3297.8,0.481]
[1762508419797,3.03218487,3298.0,3297.9,0.9378]
[1762508420470,3.03202104,3298.2,3297.9,0.4568]
[1762508420670,3.03122104,3298.2,3298.1,0.4568]
[1762508420874,3.03186543,3298.3,3298.1,0.4568]
[1762508421064,3.03195682,3298.2,3298.1,0.4568]
[1762508422461,3.03195682,3298.2,3297.2,0.1972]
[1762508422462,3.03307158,3297.0,3296.7,0.1936]
[1762508422686,3.03307158,3297.0,3296.9,0.4568]
[1762508422989,1.259712,3297.6,3296.9,0.4568]
[1762508423192,3.03287637,3297.2,3297.1,0.4568]
[1762508423490,3.03308067,3297.0,3296.8,0.481]
[1762508423697,3.03300429,3297.1,3296.8,0.481]
[1762508423862,3.03300429,3297.1,3296.9,0.4568]
[1762508424193,3.03296836,3297.1,3297.0,0.4568]
[1762508424758,3.03299386,3297.1,3296.8,0.481]
[1762508424963,3.03288605,3297.2,3297.0,0.4568]
[1762508425189,1.259712,3297.6,3297.0,0.4568]
[1762508425396,1.259712,3297.6,3297.1,0.4568]
[1762508425594,0.1821,3297.8,3297.1,0.5819]
[1762508426286,3.03287637,3297.2,3297.1,0.5819]
[1762508426717,3.03287637,3297.2,3297.1,0.4568]
[1762508426914,3.50006293,3297.7,3297.1,0.4568]
[1762508427074,3.03274769,3297.4,3297.1,0.5819]
[1762508427410,3.03223263,3297.9,3297.1,0.6061]
[1762508427613,3.03269242,3297.4,3297.3,0.4568]
[1762508428407,1.441812,3297.9,3297.3,0.4568]
[1762508428576,3.03262082,3297.5,3297.3,0.4568]
[1762508428770,0.1821,3297.9,3297.3,0.4568]
[1762508428984,3.03269242,3297.4,3297.3,0.4568]
[1762508429402,3.03253605,3297.6,3297.3,0.4568]
[1762508429605,3.03262049,3297.5,3297.3,0.4568]
[1762508429994,0.1821,3297.9,3297.3,0.4568]
[1762508430203,0.4676,3298.1,3297.4,0.4568]
[1762508430374,1.259712,3298.0,3297.4,0.4568]
[1762508430794,3.03240504,3297.8,3297.4,0.9378]
[1762508430976,3.03224287,3297.9,3297.4,0.481]
[1762508431177,3.03228396,3297.9,3297.8,0.4568]
[1762508431396,3.03208876,3298.1,3297.8,0.4568]
[1762508431598,3.03223263,3297.9,3297.8,0.4568]
[1762508431779,3.03237541,3297.8,3297.4,0.481]
[1762508432296,1.729312,3298.4,3297.7,0.4568]
[1762508432502,0.002,3298.4,3298.3,0.6504]
[1762508432700,3.03377298,3298.4,3298.3,0.6504]
[1762508432887,3.03377298,3298.4,3297.4,0.6322]
[1762508432888,0.4384,3298.4,3297.4,0.1512]
[1762508433113,0.4384,3298.4,3297.1,0.1251]
[1762508433114,0.1512,3297.7,3297.5,0.481]
[1762508433330,0.002,3298.4,3297.6,3.03250849]
[1762508433628,0.002,3298.4,3297.5,0.481]
[1762508433629,0.1512,3298.0,3297.7,3.38371575]
[1762508433823,0.1512,3298.0,3297.7,0.35135085]
[1762508434034,0.002,3298.4,3297.9,0.4568]
[1762508434234,0.002,3298.4,3298.3,0.6504]
[1762508434700,0.002,3298.4,3298.3,1.1314]
[1762508435212,0.002,3298.4,3298.3,0.6504]
[1762508435614,0.002,3298.4,3298.3,1.1314]
[1762508436303,0.002,3298.8,3298.7,3.03149725]
[1762508436504,0.002,3298.8,3298.7,3.48829725]
[1762508436757,0.002,3298.8,3298.7,3.96929725]
[1762508436935,0.002,3298.8,3298.7,0.4568]
[1762508437135,0.002,3298.8,3298.7,0.9378]
[1762508437550,0.002,3298.8,3298.7,3.96929725]
[1762508437703,0.002,3298.8,3298.7,4.66938975]
[1762508438451,0.002,3298.8,3298.7,1.6378925]
[1762508438606,0.002,3298.8,3298.7,0.9378]
[1762508439040,0.002,3298.8,3298.7,3.96929725]
[1762508439741,0.002,3298.8,3298.7,0.9378]
[1762508440241,0.002,3298.8,3298.7,0.4568]
[1762508441618,0.002,3298.8,3298.3,0.1936]
[1762508441619,0.425,3298.8,3298.3,0.1936]
[1762508441817,3.0315649,3298.7,3298.3,0.1936]
[1762508442343,0.002,3298.8,3298.3,0.676]
[1762508442543,0.002,3298.8,3298.3,3.7078292]
[1762508442747,0.002,3298.8,3298.4,0.4824]
[1762508443247,0.002,3298.8,3297.0,3.03298497]
[1762508443553,0.002,3298.8,3297.8,0.4824]
[1762508443845,0.002,3298.8,3297.9,3.03216159]
[1762508444051,0.002,3298.8,3297.8,3.51470449]
[1762508444052,0.1512,3298.2,3298.0,3.03211978]
[1762508444417,0.1512,3298.2,3298.1,4.18414875]
[1762508444824,0.002,3298.8,3298.3,3.03180579]
[1762508445113,0.1512,3298.4,3298.2,0.4997]
[1762508445551,0.1512,3298.4,3298.3,0.4675]
[1762508447267,0.1512,3298.4,3298.3,0.9672]
[1762508447473,0.1512,3298.4,3298.3,0.4675]
[1762508447857,0.1512,3298.4,3298.1,0.1849]
[1762508448060,3.18297358,3298.4,3298.1,0.1849]
[1762508448264,3.18297358,3298.4,3298.3,0.4675]
[1762508448265,0.1512,3298.4,3298.3,0.4675]
[1762508448650,0.1512,3298.4,3298.3,0.9672]
[1762508449256,0.1512,3298.4,3297.8,3.18347612]
[1762508449445,0.1512,3298.4,3298.3,0.4675]
[1762508449641,0.1512,3298.4,3298.3,1.1521]
[1762508450768,0.1512,3298.4,3298.3,0.6524]
[1762508451176,0.1512,3298.4,3298.3,4.1839649]
[1762508451471,0.1512,3298.7,3298.5,3.03166584]
[1762508451676,0.1512,3298.7,3298.6,0.4997]
[1762508451977,0.1512,3298.7,3298.6,3.99878915]
[1762508452355,0.1512,3298.7,3298.6,0.9672]
[1762508452758,0.1512,3298.7,3298.6,3.99878915]
[1762508453475,0.1512,3298.7,3298.6,0.9672]
[1762508454557,0.002,3298.8,3298.6,0.9672]
[1762508454884,0.002,3298.8,3298.4,0.001]
[1762508455183,0.1512,3298.7,3298.4,0.001]
[1762508455355,3.45888106,3298.5,3298.4,0.001]
[1762508456481,0.4272,3298.5,3298.4,0.001]
[1762508457184,0.4677,3298.7,3298.4,0.001]
[1762508457383,3.03340545,3298.8,3298.4,0.001]
[1762508457555,0.1512,3298.6,3298.4,0.001]
[1762508457884,0.1512,3298.6,3298.4,0.5007]
[1762508458049,0.1512,3298.6,3298.5,0.4675]
[1762508459473,0.1512,3298.6,3298.5,3.49918106]
[1762508459680,0.002,3298.8,3298.6,3.03158743]
[1762508459849,0.002,3298.8,3298.7,0.9672]
[1762508460254,0.002,3298.8,3298.7,4.02901222]
[1762508460655,0.002,3298.8,3298.7,4.14989725]
[1762508461584,0.002,3298.8,3298.7,3.99869725]
[1762508461792,0.002,3298.8,3298.7,5.1005207]
[1762508462087,0.002,3298.8,3298.7,5.07020573]
[1762508462491,0.002,3298.8,3298.7,5.1005207]
[1762508462656,0.002,3298.8,3298.7,5.07020573]
[1762508462856,0.002,3298.8,3298.7,6.32991773]
[1762508463811,0.92857531,3299.1,3299.0,3.03122158]
[1762508464101,0.92857531,3299.1,3299.0,4.20169551]
[1762508464314,0.92857531,3299.1,3299.0,4.70139551]
[1762508465110,0.1821,3301.0,3299.0,4.70139551]
[1762508465111,0.1821,3301.0,3299.3,3.03094595]
[1762508465270,0.1821,3301.0,3299.5,3.49826223]
[1762508465474,3.49790912,3300.6,3299.5,3.49826223]
[1762508465683,0.1821,3301.0,3299.1,0.1849]
[1762508465684,0.1818,3299.9,3299.1,0.1849]
[1762508465886,0.1818,3299.9,3299.3,3.03086933]
[1762508466305,0.0012,3299.6,3299.5,0.4675]
[1762508466871,0.9251,3299.6,3298.6,0.4997]
[1762508467073,0.0088,3299.4,3298.5,0.65320432]
[1762508467286,0.0088,3299.4,3298.3,0.4997]
[1762508467287,3.03114304,3299.1,3298.3,0.4997]
[1762508467477,3.49924304,3299.1,3298.5,3.03163038]
[1762508467678,3.03123926,3299.0,3298.3,3.53151196]
[1762508467906,3.03123926,3299.0,3298.4,3.03271784]
[1762508468100,0.4681,3299.1,3298.4,3.03271784]
[1762508468303,0.4681,3299.1,3298.4,0.001]
[1762508468493,3.03122158,3299.0,3298.4,3.03276012]
[1762508468813,0.4681,3299.1,3298.4,0.001]
[1762508468989,0.4681,3299.1,3298.5,3.03164505]
[1762508469191,0.4681,3299.1,3298.4,0.001]
[1762508469387,3.03113293,3299.1,3298.5,3.03159784]
[1762508469592,3.0312235,3299.0,3298.4,0.001]
[1762508469794,3.03123849,3299.0,3298.4,3.03276008]
[1762508470112,3.03123849,3299.0,3298.4,3.68920155]
[1762508470315,0.0012,3299.6,3298.9,0.4675]
[1762508470626,0.0012,3299.6,3299.2,3.03097244]
[1762508470812,0.0012,3299.6,3299.5,0.4675]
[1762508471201,0.0012,3299.6,3299.5,4.02826985]
[1762508471403,0.0012,3299.6,3299.5,4.72236951]
[1762508472199,0.0012,3299.6,3299.5,1.69160728]
[1762508472495,0.0012,3299.6,3299.5,1.19190728]
[1762508473025,0.0012,3299.6,3299.1,0.001]
[1762508473026,0.4284,3299.6,3299.1,0.001]
[1762508473213,3.92678456,3299.6,3299.1,0.1522]
[1762508473414,3.92678456,3299.6,3299.1,3.18331884]
[1762508473415,0.8961,3299.6,3299.1,3.18331884]
[1762508473598,0.4284,3299.6,3299.2,3.03102985]
[1762508473799,0.4284,3299.6,3299.1,3.18329653]
[1762508474000,0.4284,3299.6,3299.1,3.87321522]
[1762508474418,0.4284,3299.6,3299.1,0.84211869]
[1762508474633,0.0012,3299.6,3299.3,3.03088315]
[1762508474822,0.0012,3299.6,3299.4,3.03084474]
[1762508475022,0.0012,3299.6,3299.5,0.4542]
[1762508475231,0.0012,3299.6,3299.5,3.48496223]
[1762508475431,0.0012,3299.6,3299.5,3.95026223]
[1762508475800,0.0012,3299.6,3299.5,0.4542]
[1762508475998,0.0012,3299.6,3299.3,3.18210428]
[1762508476201,0.0012,3299.6,3299.4,3.03085182]
[1762508476421,0.0012,3299.6,3299.5,3.48496223]
[1762508476613,0.0012,3299.6,3299.5,3.95026223]
[1762508479717,0.0012,3299.6,3299.5,7.82026223]
[1762508480935,1e-08,3299.7,3299.6,3.03067038]
[1762508481113,0.007,3299.9,3299.8,3.03048669]
[1762508481315,0.007,3299.9,3299.8,7.35468669]
[1762508481525,0.002,3300.0,3299.9,3.03039486]
[1762508481730,0.002,3300.0,3299.9,3.94989486]
[1762508482057,0.002,3300.0,3299.9,7.81989486]
[1762508482216,0.002,3300.0,3299.9,8.90493301]
[1762508483006,0.002,3300.0,3299.9,10.16464501]
[1762508484848,0.005,3300.9,3300.2,3.03011938]
[1762508485015,0.005,3300.9,3300.2,3.67941938]
[1762508485213,0.005,3300.9,3300.2,4.14471938]
[1762508485418,0.005,3300.9,3300.2,4.86221284]
[1762508486156,0.186,3300.9,3300.2,4.86221284]
[1762508486512,0.005,3300.9,3300.2,5.01341284]
[1762508487611,0.186,3300.9,3300.2,5.65662484]
[1762508487825,0.186,3300.9,3300.2,0.4542]
[1762508488065,0.9186,3300.3,3300.0,3.03024405]
[1762508488360,0.002,3300.3,3300.2,3.03011938]
[1762508488542,0.002,3300.3,3300.1,3.03017855]
[1762508488747,0.002,3300.3,3300.2,3.03011938]
[1762508488939,0.0012,3300.3,3300.1,3.03020605]
[1762508489310,0.4371,3300.2,3300.1,3.03020605]
[1762508489514,0.9166,3300.2,3299.9,3.03134137]
[1762508489716,0.0048,3300.0,3299.9,3.03134137]
[1762508489909,0.0048,3300.0,3299.9,0.001]
[1762508490146,0.4847,3300.0,3299.9,0.001]
[1762508490348,0.0048,3300.0,3299.9,0.001]
[1762508490548,0.4847,3300.0,3299.9,0.001]
[1762508490910,0.0048,3300.0,3299.9,3.03139486]
[1762508491148,0.4811,3300.3,3299.9,0.001]
[1762508491320,0.4371,3300.0,3299.9,0.001]
[1762508491820,3.94690303,3300.0,3299.9,0.001]
[1762508492029,0.9166,3300.0,3299.9,0.001]
[1762508493047,3.94690303,3300.0,3299.9,0.001]
[1762508495035,3.03067038,3299.6,3299.5,0.001]
[1762508495224,3.03547038,3299.6,3299.5,0.001]
[1762508495415,3.51537038,3299.6,3299.5,0.001]
[1762508495625,3.03094595,3299.3,3299.2,0.001]
[1762508495971,3.94324595,3299.3,3299.2,0.001]
[1762508496440,3.03103782,3299.2,3299.1,0.001]
[1762508496632,3.52003782,3299.2,3299.1,0.001]
[1762508498259,3.03140535,3298.8,3298.2,3.03187769]
[1762508498459,3.45960535,3298.8,3298.2,3.03187769]
[1762508498656,0.0235,3298.3,3298.0,0.001]
[1762508498862,0.4474,3298.1,3298.0,0.001]
[1762508499061,3.47944875,3298.1,3298.0,0.001]
[1762508499362,3.95904875,3298.1,3298.0,0.001]
[1762508502770,0.927,3298.1,3298.0,0.001]
[1762508502939,3.95904875,3298.1,3298.0,0.001]
[1762508503870,0.4474,3298.1,3298.0,0.001]
[1762508504171,3.95904875,3298.1,3298.0,0.001]
[1762508506351,0.927,3298.1,3298.0,0.001]
[1762508507073,3.95904875,3298.1,3298.0,0.001]
[1762508507238,0.927,3298.1,3298.0,0.001]
[1762508507640,3.95904875,3298.1,3298.0,0.001]
[1762508511939,3.95824875,3298.1,3298.0,0.001]
[1762508514216,5.21796075,3298.1,3298.0,0.001]
[1762508514381,4.29203658,3297.8,3297.6,0.001]
[1762508514700,4.29683658,3297.8,3297.6,0.001]
[1762508514925,4.77223658,3297.8,3297.6,0.001]
[1762508520627,10.29230272,3297.8,3297.6,0.001]
[1762508521116,3.03241653,3297.7,3297.6,0.001]
[1762508521323,3.95411653,3297.7,3297.6,0.001]
[1762508521531,5.21382853,3297.7,3297.6,0.001]
[1762508521822,4.29240442,3297.4,3297.3,0.001]
[1762508521971,9.82167056,3297.4,3297.3,0.001]
[1762508522167,10.6741187,3297.4,3297.3,0.001]
[1762508523971,10.6741187,3297.4,3296.7,0.00333618]
[1762508523972,4.29295635,3296.8,3296.7,0.00333618]
[1762508524172,4.29350849,3296.2,3296.0,2.41563361]
[1762508524380,4.31110849,3296.2,3296.0,2.41563361]
[1762508524581,4.78650849,3296.2,3296.0,2.41563361]
[1762508525505,1.277312,3296.2,3296.0,2.41563361]
[1762508525704,4.31110849,3296.2,3296.0,2.41563361]
[1762508525904,1.277312,3296.2,3296.0,2.41563361]
[1762508526207,4.78650849,3296.2,3296.0,2.41563361]
[1762508527231,4.31110849,3296.2,3296.0,2.41563361]
[1762508527536,4.78650849,3296.2,3296.0,2.41563361]
[1762508527738,1.277312,3296.2,3296.0,2.41563361]
[1762508528047,0.4754,3296.6,3296.1,0.4983]
[1762508528202,0.4754,3296.6,3296.1,0.005]
[1762508528535,3.03379649,3296.2,3296.1,0.005]
[1762508528734,3.03369201,3296.4,3296.1,0.005]
[1762508529037,3.03378009,3296.3,3296.1,0.005]
[1762508529200,3.47299649,3296.2,3296.1,0.005]
[1762508529405,3.94799649,3296.2,3296.1,0.005]
[1762508531805,0.475,3296.8,3296.1,0.4983]
[1762508532002,0.475,3296.8,3296.1,0.6885]
[1762508532198,0.475,3296.8,3296.1,0.005]
[1762508532423,3.47339649,3296.2,3296.1,0.005]
[1762508532797,3.94809649,3296.2,3296.1,0.005]
[1762508533352,3.47339649,3296.2,3296.1,0.005]
[1762508533553,3.94809649,3296.2,3296.1,0.005]
[1762508533718,0.4396,3296.2,3296.1,0.005]
[1762508533905,3.03379649,3296.2,3296.1,0.005]
[1762508534514,3.94719649,3296.2,3296.1,0.005]
[1762508535408,3.03299649,3296.2,3296.1,0.005]
[1762508535607,3.03370833,3296.3,3296.1,0.691]
[1762508535910,3.03364296,3296.4,3296.1,0.1938]
[1762508536104,3.03371744,3296.3,3296.1,0.005]
[1762508536329,3.44879649,3296.2,3296.1,0.005]
[1762508536516,0.415,3296.2,3296.1,0.005]
[1762508536716,3.03367794,3296.4,3296.1,1.1893]
[1762508537024,3.03368493,3296.4,3296.1,1.1893]
[1762508537214,3.03368493,3296.4,3296.1,0.691]
[1762508537829,3.03374149,3296.3,3296.1,0.005]
[1762508538141,3.44879649,3296.2,3296.1,0.005]
[1762508538304,9.46786263,3296.2,3296.1,0.005]
[1762508539607,0.499,3296.7,3296.1,0.005]
[1762508539836,0.4999,3296.8,3296.1,0.005]
[1762508540142,0.193,3296.9,3296.1,0.005]
[1762508540143,0.193,3296.9,3296.1,0.6921]
[1762508540307,3.03317405,3296.9,3296.1,0.6921]
[1762508540502,1.950412,3297.1,3296.1,0.1938]
[1762508540840,3.03365699,3296.4,3296.1,0.005]
[1762508541041,0.4999,3297.0,3296.1,0.005]
[1762508541204,3.03366416,3296.4,3296.3,0.4972]
[1762508541407,3.03366416,3296.4,3296.1,0.005]
[1762508541408,3.03379649,3296.2,3296.1,0.005]
[1762508542219,3.45179649,3296.2,3296.1,0.005]
[1762508542444,3.45179649,3296.2,3296.1,0.006]
[1762508542738,3.94999649,3296.2,3296.1,0.006]
[1762508544209,3.45179649,3296.2,3296.1,0.006]
[1762508544820,3.94999649,3296.2,3296.1,0.006]
[1762508546742,3.45179649,3296.2,3296.1,0.006]
[1762508547923,3.03379649,3296.2,3296.1,1.1903]
[1762508548257,3.03379649,3296.2,3296.1,0.006]
[1762508548416,3.95079649,3296.2,3296.1,0.006]
[1762508548746,5.21050849,3296.2,3296.1,0.006]
[1762508549155,5.21050849,3296.2,3296.1,1e-08]
[1762508550158,4.79310849,3296.2,3296.1,1e-08]
[1762508550361,0.002,3296.6,3296.1,0.68600001]
[1762508550671,4.29514038,3296.6,3296.5,0.4972]
[1762508551054,3.0335994,3296.5,3296.3,0.4983]
[1762508551259,0.002,3296.6,3296.5,0.4972]
[1762508551430,3.03542838,3296.6,3296.5,0.4972]
[1762508551631,0.1512,3296.5,3296.1,0.18880001]
[1762508551869,3.03379649,3296.2,3296.1,1e-08]
[1762508552566,0.002,3296.6,3296.1,0.99550001]
[1762508552771,3.0335875,3296.5,3296.3,0.4972]
[1762508552945,3.0335875,3296.5,3296.1,0.49830001]
[1762508552946,3.0335875,3296.5,3296.2,0.4983]
[1762508553145,0.002,3296.6,3296.2,0.4983]
[1762508553494,1.259712,3296.2,3296.1,1e-08]
[1762508553634,4.29350849,3296.2,3296.1,1e-08]
[1762508553981,1.259712,3296.3,3296.1,0.49720001]
[1762508554136,4.29332442,3296.4,3296.3,0.4972]
[1762508554339,1.259712,3296.4,3296.3,0.4983]
[1762508554540,1.259712,3296.4,3296.3,0.9955]
[1762508555441,1.261712,3296.6,3296.3,0.9955]
[1762508555638,1.261712,3296.6,3296.5,0.4972]
[1762508555835,0.002,3296.6,3296.5,0.4972]
[1762508556039,0.002,3296.6,3296.5,0.9955]
[1762508556340,0.002,3296.6,3296.5,0.4972]
[1762508556852,0.002,3296.6,3296.1,1e-08]
[1762508556853,3.0336356,3296.4,3296.1,1e-08]
[1762508557063,3.0336356,3296.4,3296.1,0.49830001]
[1762508557264,3.03353457,3296.5,3296.3,0.4972]
[1762508557471,3.03361242,3296.4,3296.3,0.4972]
[1762508557668,3.03375541,3296.3,3296.1,1e-08]
[1762508557878,3.03368011,3296.4,3296.2,0.4983]
[1762508558202,0.002,3296.6,3296.2,0.9955]
[1762508558386,3.03370445,3296.3,3296.2,0.9955]
[1762508558579,3.0336493,3296.4,3296.2,0.9955]
[1762508558790,3.03355682,3296.5,3296.2,0.9955]
[1762508558967,3.03355682,3296.5,3296.3,0.4718]
[1762508559356,0.4172,3296.4,3296.1,1e-08]
[1762508559561,3.03379649,3296.2,3296.1,0.18050001]
[1762508559758,3.03379649,3296.2,3296.1,0.65230001]
[1762508560058,3.52499649,3296.2,3296.1,1e-08]
[1762508560830,3.03379649,3296.2,3296.1,1e-08]
[1762508561259,3.95079649,3296.2,3296.1,1e-08]
[1762508562201,5.21050849,3296.2,3296.1,1e-08]
[1762508565162,4.78410849,3296.2,3296.1,1e-08]
[1762508565368,10.73057463,3296.2,3296.1,1e-08]
[1762508566364,11.16598192,3296.2,3296.1,1e-08]
[1762508567486,4.29387669,3295.8,3295.7,0.001]
[1762508567803,5.22398398,3295.8,3295.7,0.001]
[1762508567961,5.26327669,3295.8,3295.7,0.001]
[1762508568398,5.69868398,3295.8,3295.7,0.001]
[1762508568724,4.29442916,3295.2,3295.0,0.01]
[1762508569009,4.30172916,3295.2,3295.1,1e-08]
[1762508569214,4.77642916,3295.2,3295.1,1e-08]
[1762508569708,4.29452126,3295.1,3295.0,1e-08]
[1762508570023,5.25902126,3295.1,3295.0,1e-08]
[1762508572423,0.4747,3295.8,3295.0,0.94170001]
[1762508572577,0.4747,3295.7,3295.0,0.47120001]
[1762508572782,3.03480926,3295.1,3295.0,1e-08]
[1762508572983,3.52950926,3295.1,3295.0,1e-08]
[1762508573282,5.52006614,3295.7,3295.0,0.47120001]
[1762508573492,3.03461667,3295.4,3295.0,0.47120001]
[1762508573697,3.50871295,3296.0,3295.1,0.1827]
[1762508574016,0.4747,3296.0,3295.1,0.6532]
[1762508574221,1.259712,3295.4,3295.1,0.6532]
[1762508574429,3.50871161,3296.0,3295.1,0.6532]
[1762508574430,0.4747,3296.0,3295.1,0.6532]
[1762508574720,3.03432631,3295.7,3295.3,0.4712]
[1762508574922,3.03436082,3295.6,3295.3,0.4712]
[1762508575128,3.03440039,3295.6,3295.3,0.4712]
[1762508575307,3.03434882,3295.6,3295.5,0.4712]
[1762508576625,0.002,3296.6,3295.5,0.4712]
[1762508576822,0.002,3296.6,3296.4,0.6539]
[1762508577195,0.007,3296.9,3296.8,3.03324435]
[1762508577539,0.007,3296.9,3296.8,0.4712]
[1762508577839,0.007,3296.9,3296.8,3.97494435]
[1762508578018,0.007,3296.9,3296.8,0.9417]
[1762508578334,0.007,3296.9,3296.8,3.97494435]
[1762508578518,0.007,3296.9,3296.8,0.9417]
[1762508578835,0.007,3296.9,3296.8,3.97494435]
[1762508578989,0.007,3296.9,3296.8,4.67578128]
[1762508580393,0.0062,3296.9,3296.8,4.67578128]
[1762508581006,0.0062,3296.9,3296.8,0.9417]
[1762508581205,0.0062,3296.9,3296.8,0.4712]
[1762508581717,0.0062,3296.9,3296.4,0.1827]
[1762508581928,0.0062,3296.9,3296.2,0.6532]
[1762508581929,0.6092,3296.9,3296.2,0.6532]
[1762508582131,3.0394071,3296.9,3296.3,0.4705]
[1762508582501,0.0062,3296.9,3296.3,0.4705]
[1762508582740,3.0394219,3296.9,3296.3,0.4705]
[1762508582887,0.0062,3296.9,3296.8,0.4712]
[1762508583388,0.0062,3296.9,3296.8,0.9417]
[1762508583998,0.0062,3296.9,3296.8,0.4712]
[1762508584411,0.0062,3296.9,3296.8,3.97494435]
[1762508584611,0.0062,3296.9,3296.8,0.9417]
[1762508584790,0.0062,3296.9,3296.8,0.4712]
[1762508584992,0.0062,3296.9,3296.4,0.4705]
[1762508585288,3.03325096,3296.8,3296.4,0.4705]
[1762508585499,3.03349949,3296.6,3296.2,0.1827]
[1762508586031,1.462112,3296.9,3296.2,0.1827]
[1762508586325,3.03381051,3296.2,3295.5,3.50488703]
[1762508586526,3.03362632,3296.4,3295.7,0.1827]
[1762508586527,3.03374312,3296.3,3295.7,0.1827]
[1762508587119,3.03381616,3296.2,3295.7,0.1827]
[1762508587524,0.4747,3296.6,3295.7,3.68738189]
[1762508587728,3.0335204,3296.5,3295.8,3.03413124]
[1762508587924,3.23557959,3296.9,3295.8,0.4705]
[1762508588112,3.03331886,3296.8,3296.0,3.03394871]
[1762508588318,0.2024,3296.9,3295.9,3.50453902]
[1762508588530,3.0335144,3296.6,3295.9,3.50453902]
[1762508589539,0.2024,3296.9,3296.0,3.50447706]
[1762508589740,4.29307094,3296.7,3296.1,3.50433016]
[1762508590346,3.03343276,3296.6,3296.1,0.4705]
[1762508590899,3.03333722,3296.7,3296.1,3.50437659]
[1762508591137,0.0062,3296.9,3296.2,3.03373538]
[1762508591437,3.18503105,3296.2,3295.7,0.1827]
[1762508591803,3.03366831,3296.4,3295.8,0.4705]
[1762508592139,3.03354198,3296.5,3296.3,0.4712]
[1762508592438,0.0062,3296.9,3296.3,0.4712]
[1762508592606,0.0062,3296.9,3295.7,3.21689361]
[1762508592607,3.03345296,3296.6,3296.0,3.50441864]
[1762508592933,0.1512,3296.1,3295.8,3.034118]
[1762508593137,0.1512,3296.1,3295.7,3.68744832]
[1762508593332,0.1512,3296.1,3296.0,0.4712]
[1762508593516,3.03355633,3296.5,3296.0,0.4712]
[1762508594118,3.03360427,3296.5,3296.0,0.4712]
[1762508594554,0.6771,3296.9,3296.1,0.4855]
[1762508594737,4.29310748,3296.7,3296.1,3.51938853]
[1762508594947,3.03343064,3296.6,3296.1,0.4855]
[1762508595659,0.2024,3296.9,3296.5,0.4635]
[1762508595660,0.0062,3296.9,3296.5,0.4635]
[1762508595862,0.0062,3296.9,3296.8,0.4635]
[1762508596210,0.0062,3296.9,3296.8,3.98224435]